fUSD/lending_fUSD_20240923
["ID","MTS","AMOUNT","RATE_DAILY","PERIOD"]
[338921952,1727076638674,-500.0,0.00012896,2]
[338921953,1727076638683,-162.78018815,0.000129,2]
[338921954,1727076638693,-18323.1084,0.000129,2]
[338921955,1727076638709,-6031.2183,0.000129,2]
[338921956,1727076638718,-176.81501871,0.000129,2]
[338921957,1727076638728,-9512.4141,0.000129,2]
[338921958,1727076638738,-5850.2933,0.000129,2]
[338921959,1727076638748,-997.52,0.000129,2]
[338921961,1727076638757,-500.0,0.000129,4]
[338921963,1727076638767,-1413.23731861,0.000129,2]
[338921965,1727076638777,-152.45765318,0.000129,2]
[338921967,1727076638787,-152.45765318,0.000129,2]
[338921969,1727076638796,-152.45765318,0.000129,2]
[338921971,1727076638806,-152.45765318,0.000129,2]
[338921973,1727076638816,-152.45765318,0.000129,2]
[338921974,1727076638825,-152.45765318,0.000129,2]
[338921975,1727076638834,-152.95,0.000129,2]
[338921976,1727076638844,-621.04233213,0.000129,2]
[338921977,1727076638854,-166.15078632,0.000129,2]
[338921978,1727076638864,-166.15078632,0.000129,2]
[338921979,1727076638874,-166.15078632,0.000129,2]
[338921980,1727076638884,-166.15078632,0.000129,2]
[338921981,1727076638898,-166.15078632,0.000129,2]
[338921982,1727076638908,-166.15078632,0.000129,2]
[338921983,1727076638918,-166.15078632,0.000129,2]
[338921984,1727076638928,-166.15078632,0.000129,2]
[338921985,1727076638938,-166.65,0.000129,2]
[338921986,1727076638948,-171.7976515,0.000129,2]
[338921987,1727076638957,-287.27,0.00012956,2]
[338921988,1727076638969,-500.0,0.00012973,2]
[338921989,1727076638979,-592.96616518,0.00012973,2]
[338921990,1727076638989,-150.0,0.00012986,2]
[338921991,1727076638999,-186.49,0.0001299,2]
[338921992,1727076639008,-186.49,0.0001299,2]
[338921993,1727076639018,-154.9790486,0.00012996,2]
[338921994,1727076639027,-8233.3002982,0.00012996,2]
[338921995,1727076639037,-754.36762999,0.00012999,2]
[338921996,1727076639047,-500.0,0.00012999,2]
[338921997,1727076639056,-500.0,0.00012999,2]
[338921998,1727076639065,-500.0,0.00012999,2]
[338921999,1727076639075,-500.0,0.00012999,2]
[338922000,1727076639084,-500.0,0.00012999,2]
[338922001,1727076639094,-500.0,0.00012999,2]
[338922002,1727076639104,-264.04,0.00012999,2]
[338922003,1727076639113,-2000.0,0.00012999,2]
[338922004,1727076639122,-500.0,0.00012999,2]
[338922005,1727076639132,-669.71881771,0.00012999,3]
[338922006,1727076639141,-543.0,0.00013,2]
[338922007,1727076639151,-86006.88557306,0.00013,2]
[338922008,1727076639161,-68396.72425676,0.00013,2]
[338922009,1727076639198,-0.45912927,0.00013,2]
[338922016,1727076639872,-3257.921871,0.00013,2]
[338922018,1727076639884,-896.82497611,0.00013,2]
[338922019,1727076639900,-383.57266039,0.00013,2]
[338922020,1727076639912,-5771.00299894,0.00013,2]
[338922021,1727076639930,-5291.6,0.00013,2]
[338922022,1727076639941,-581.0751696,0.00013,2]
[338922023,1727076639967,-2148.59153074,0.00013,2]
[338922024,1727076639979,-1221.18105363,0.00013,2]
[338922025,1727076639990,-317.925,0.00013,2]
[338922026,1727076640004,-5578.94510997,0.00013,2]
[338922027,1727076640017,-147723.24453998,0.00013,2]
[338922028,1727076640029,-867.74640596,0.00013,2]
[338922029,1727076640041,-1146.80056203,0.00013,2]
[338922030,1727076640061,-1467.29741007,0.00013,2]
[338922031,1727076640073,-15151.89314452,0.00013,2]
[338922032,1727076640085,-264.4956,0.00013,2]
[338922033,1727076640097,-1023.25,0.00013,2]
[338922034,1727076640109,-1440.28282234,0.00013,2]
[338922035,1727076640130,-2925.0,0.00013,2]
[338922036,1727076640141,-37533.08178596,0.00013,2]
[338922037,1727076640153,-3274.14906833,0.00013,2]
[338922038,1727076640164,-3017.256,0.00013,2]
[338922039,1727076640175,-3380.424834,0.00013,2]
[338922040,1727076640220,-254.25,0.00013,2]
[338922041,1727076640231,-311.142,0.00013,2]
[338922042,1727076640243,-2055.22401004,0.00013,2]
[338922043,1727076640334,-1950.58610927,0.00013,2]
[338922044,1727076640346,-362.572002,0.00013,2]
[338922049,1727076643015,-384.34999965,0.00012744,2]
[338922050,1727076643027,-446.91429972,0.00012744,2]
[338922051,1727076643126,-528.85885242,0.00012744,2]
[338922052,1727076643139,-605.2355108,0.00012744,2]
[338922053,1727076643149,-638.7036206,0.00013,2]
[338922054,1727076643161,-3087.7847,0.00013,2]
[338922055,1727076643173,-363.217563,0.00013,2]
[338922056,1727076643185,-571.59772232,0.00013,2]
[338922057,1727076643198,-424.63621686,0.00013,2]
[338922058,1727076643222,-997.62972712,0.00013,2]
[338922059,1727076643233,-305984.75587685,0.00013,2]
[338922060,1727076643245,-2020.54450368,0.00013,2]
[338922061,1727076643255,-340.68338463,0.00013,2]
[338922062,1727076643266,-1417.40721425,0.00013,2]
[338922063,1727076643277,-16535.4946002,0.00013,2]
[338922064,1727076643300,-738.1314692,0.00013,2]
[338922065,1727076643311,-947.40643778,0.00013,2]
[338922066,1727076643322,-25226.58882195,0.00013,2]
[338922067,1727076643333,-1920.65335141,0.00013,2]
[338922068,1727076643374,-7724.67253932,0.00013,2]
[338922075,1727076646004,-611.967,0.00013,2]
[338922076,1727076646016,-595.06691331,0.00013,2]
[338922077,1727076646029,-33176.91259541,0.00013,2]
[338922078,1727076646041,-1345.0,0.00013,2]
[338922079,1727076646053,-896.1847932,0.00013,2]
[338922080,1727076646069,-14993.26991951,0.00013,2]
[338922081,1727076646095,-302.0,0.00013,2]
[338922082,1727076646106,-5114.97780404,0.00013,2]
[338922083,1727076646229,-371.88291753,0.00012767,2]
[338922084,1727076646241,-1324.8,0.00012767,2]
[338922085,1727076646254,-268.67574506,0.00012767,2]
[338922086,1727076646265,-1331.32425494,0.00013,2]
[338922087,1727076646279,-1794.36314389,0.00013,2]
[338922088,1727076646290,-344.849717,0.00013,2]
[338922089,1727076646302,-25773.32341151,0.00013,2]
[338922090,1727076646317,-957.52,0.00013,2]
[338922091,1727076646329,-1668.32821834,0.00013,2]
[338922092,1727076646341,-9309.10477623,0.00013,2]
[338922093,1727076646362,-3337.89376783,0.00013,2]
[338922094,1727076646463,-1675.2,0.00013,2]
[338922097,1727076714683,500.0,0.00010084,2]
[338922098,1727076728720,184.02,0.00010959,2]
[338922105,1727076938998,150.0,0.00010133,2]
[338922106,1727076939027,150.0,0.00010133,2]
[338922107,1727076939050,29.83,0.00010133,2]
[338922109,1727077263954,169.39,0.00010959,2]
[338922110,1727077321687,150.0,0.00011,2]
[338922111,1727077321711,150.0,0.00011,2]
[338922112,1727077321732,150.0,0.00011,2]
[338922113,1727077321754,150.0,0.00011,2]
[338922114,1727077321776,150.0,0.00011,2]
[338922115,1727077321797,150.0,0.00011,2]
[338922116,1727077321818,150.0,0.00011,2]
[338922117,1727077321838,150.0,0.00011,2]
[338922118,1727077321858,11.93598184,0.00011,2]
[338922121,1727077513695,313.33,9.859e-05,2]
[338922187,1727077832071,-196.1047,0.00011662,2]
[338922188,1727077832084,-374.088873,0.00011663,2]
[338922189,1727077832094,-359.806377,0.00011722,2]
[338922190,1727077832124,-640.193623,0.00011722,2]
[338922191,1727077832133,-114.703377,0.00011722,2]
[338922192,1727077832149,-485.296623,0.00011722,2]
[338922193,1727077832158,-300.0,0.00011761,2]
[338922194,1727077832167,-250.0,0.00011762,2]
[338922195,1727077832177,-643.76531962,0.00011762,2]
[338922196,1727077832196,-4968.83468038,0.00011762,2]
[338922197,1727077832207,-250.0,0.000118,2]
[338922198,1727077832217,-317.78,0.00011837,2]
[338922199,1727077832226,-294.5,0.00011874,2]
[338922200,1727077832236,-1200.0,0.00012,3]
[338922201,1727077832245,-313.33,0.00012123,2]
[338922202,1727077832255,-753.25,0.00012241,2]
[338922203,1727077832264,-478.92,0.000123,2]
[338922204,1727077832273,-328.84,0.00012352,2]
[338922205,1727077832283,-158.91,0.00012445,2]
[338922206,1727077832293,-164.582174,0.00012506,2]
[338922207,1727077832304,-429.95,0.00012548,2]
[338922208,1727077832314,-450.493,0.00012814,2]
[338922209,1727077832323,-1438.602,0.00012814,2]
[338922210,1727077832348,-1262.0,0.00012814,2]
[338922211,1727077832357,-637.515,0.00012814,2]
[338922212,1727077832367,-164.582174,0.00012818,2]
[338922213,1727077832376,-500.0,0.00012824,2]
[338922214,1727077832386,-324.112,0.00012891,2]
[338922215,1727077832395,-500.0,0.00012896,2]
[338922217,1727077832405,-500.0,0.00012899,2]
[338922219,1727077832414,-483.1,0.00012899,2]
[338922220,1727077832423,-150.0,0.00012899,2]
[338922222,1727077832432,-162.78018815,0.000129,2]
[338922224,1727077832441,-4113.70013922,0.000129,2]
[338922226,1727077832450,-44543.2249,0.000129,2]
[338922227,1727077832459,-272.8281,0.000129,2]
[338922228,1727077832468,-1010.1,0.000129,2]
[338922229,1727077832478,-23401.36174527,0.000129,2]
[338922230,1727077832487,-170.7328777,0.000129,2]
[338922231,1727077832496,-170.7328777,0.000129,2]
[338922232,1727077832506,-170.7328777,0.000129,2]
[338922234,1727077832514,-170.7328777,0.000129,2]
[338922235,1727077832523,-171.23,0.000129,2]
[338922236,1727077832532,-170.88368839,0.000129,2]
[338922237,1727077832542,-170.88368839,0.000129,2]
[338922238,1727077832551,-170.88368839,0.000129,2]
[338922239,1727077832561,-170.88368839,0.000129,2]
[338922240,1727077832570,-170.88368839,0.000129,2]
[338922241,1727077832581,-170.88368839,0.000129,2]
[338922242,1727077832590,-171.38,0.000129,2]
[338922243,1727077832599,-320.31531078,0.000129,2]
[338922244,1727077832608,-252.7718762,0.000129,2]
[338922245,1727077832617,-420.0,0.00012914,2]
[338922246,1727077832626,-500.0,0.00012973,2]
[338922247,1727077832635,-246.23,0.00012975,2]
[338922248,1727077832646,-248.113,0.00012975,2]
[338922249,1727077832658,-28665.306,0.0001299,2]
[338922250,1727077832667,-153.78,0.0001299,2]
[338922251,1727077832676,-153.78,0.0001299,2]
[338922252,1727077832685,-153.78,0.0001299,2]
[338922253,1727077832694,-153.78,0.0001299,2]
[338922254,1727077832703,-153.78,0.0001299,2]
[338922255,1727077832712,-153.78,0.0001299,2]
[338922256,1727077832721,-309.95809772,0.00012996,2]
[338922257,1727077832730,-600.0,0.00012999,2]
[338922258,1727077832739,-500.0,0.00012999,2]
[338922259,1727077832749,-385.33600926,0.00012999,2]
[338922260,1727077832758,-2269.0,0.00012999,2]
[338922261,1727077832767,-500.0,0.00012999,2]
[338922262,1727077832777,-109653.22252563,0.00013,2]
[338922263,1727077832786,-121005.00887288,0.00013,2]
[338922264,1727077832798,-2722.12504729,0.00013,2]
[338922265,1727077832809,-465532.34260726,0.00013,2]
[338922266,1727077832824,-1230.01759857,0.00013,2]
[338922267,1727077832837,-2177.36342289,0.00013,2]
[338922268,1727077832848,-22253.86192698,0.00013,2]
[338922269,1727077832859,-4159.9665138,0.00013,2]
[338922270,1727077832871,-1306.0,0.00013,2]
[338922271,1727077832928,-9835.58180308,0.00013,2]
[338922272,1727077832939,-1415.43626018,0.00013,2]
[338922273,1727077832951,-3586.11267,0.00013,2]
[338922279,1727077838256,-4236.72490095,0.00013,2]
[338922280,1727077838268,-63547.24399521,0.00013,2]
[338922281,1727077838289,-16741.38379213,0.00013,2]
[338922282,1727077838301,-6157.08148719,0.00013,2]
[338922283,1727077838323,-1605.98,0.00013,2]
[338922284,1727077838334,-1116.50326628,0.00013,2]
[338922285,1727077838349,-2549.55900004,0.00013,2]
[338922286,1727077838438,-712.43225591,0.00013,2]
[338922287,1727077838455,-325.46443259,0.00013,2]
[338922288,1727077838466,-2749.96567603,0.00013,2]
[338922289,1727077838477,-2200.0,0.00013,2]
[338922290,1727077838501,-484.43905378,0.00013,2]
[338922317,1727077840080,-5568.99582229,0.00013,2]
[338922318,1727077840134,-2753.97444477,0.00013,2]
[338922319,1727077840146,-374.07477111,0.00013,2]
[338922320,1727077840189,-3473.94889621,0.00013,2]
[338922321,1727077840201,-500.0,0.00013,2]
[338922322,1727077840244,-291.88343201,0.00013,2]
[338922323,1727077840256,-4285.7862628,0.00013,2]
[338922324,1727077840299,-5719.53545259,0.00013,2]
[338922325,1727077840310,-462.7030002,0.00013,2]
[338922326,1727077840356,-737.23553797,0.00013,2]
[338922335,1727077843199,-879.178145,0.00013,2]
[338922336,1727077843252,-1433.76304378,0.00013,2]
[338922337,1727077843307,-1663375.23129234,0.00013,2]
[338922338,1727077843318,-1450652.84876172,0.00013,2]
[338922339,1727077843329,-2564.133,0.00013,2]
[338922340,1727077843342,-508.350001,0.00013,2]
[338922341,1727077843364,-1217.50675063,0.00013,2]
[338922342,1727077843376,-401.47892665,0.00013,2]
[338922354,1727077846039,-1998.59020193,0.00013,2]
[338922355,1727077846048,-204.0,0.00013,2]
[338922357,1727077846058,-204.0,0.00013,2]
[338922359,1727077846069,-204.0,0.00013,2]
[338922360,1727077846078,-204.0,0.00013,2]
[338922362,1727077846087,-204.0,0.00013,2]
[338922363,1727077846096,-204.0,0.00013,2]
[338922365,1727077846106,-204.0,0.00013,2]
[338922367,1727077846116,-204.0,0.00013,2]
[338922369,1727077846125,-204.0,0.00013,2]
[338922370,1727077846134,-16395.4765464,0.00013,2]
[338922372,1727077846147,-1275.61048604,0.00013,2]
[338922374,1727077846159,-3979.28148486,0.00013,2]
[338922380,1727077846250,-480.34,0.00013,2]
[338922381,1727077846262,-285.56665977,0.00013,2]
[338922382,1727077846274,-1175.71999984,0.00013,2]
[338922383,1727077846359,-433.9560001,0.00013,2]
[338922386,1727077889704,150.0,0.00010084,2]
[338922387,1727077889726,150.0,0.00010084,2]
[338922388,1727077889747,150.0,0.00010084,2]
[338922389,1727077889767,50.0,0.00010084,2]
[338922390,1727077950576,150.0,0.00010084,2]
[338922391,1727077950599,150.0,0.00010084,2]
[338922392,1727077950620,150.0,0.00010084,2]
[338922393,1727077950641,50.0,0.00010084,2]
[338922394,1727077952356,100.0,9.589e-05,2]
[338922395,1727077952376,103.32,9.589e-05,2]
[338922396,1727077988190,500.0,0.00010084,2]
[338922397,1727078056419,150.0,0.00010027,2]
[338922398,1727078056441,147.94,0.00010027,2]
[338922399,1727078072246,351.08,0.00010959,2]
[338922400,1727078223699,150.0,0.00011,2]
[338922401,1727078223722,150.0,0.00011,2]
[338922402,1727078223748,150.0,0.00011,2]
[338922403,1727078223770,150.0,0.00011,2]
[338922404,1727078223791,150.0,0.00011,2]
[338922405,1727078223812,150.0,0.00011,2]
[338922406,1727078223833,150.0,0.00011,2]
[338922407,1727078237423,300.0,0.00010959,2]
[338922409,1727078557100,155.07,0.00010959,2]
[338922410,1727078565516,283.04,9.859e-05,2]
[338922411,1727078693834,-1500.0,0.00011695,2]
[338922412,1727078693859,-158.89,0.0001173,2]
[338922413,1727078693885,-250.0,0.00011745,2]
[338922414,1727078693910,-263.07,0.00011763,2]
[338922415,1727078693933,-750.0,0.00011849,2]
[338922416,1727078693956,-200.0,0.00011885,2]
[338922417,1727078693982,-150.0,0.00011999,2]
[338922418,1727078694005,-300.0,0.00011999,2]
[338922419,1727078694028,-26428.04,0.00012,2]
[338922420,1727078720401,-30000.0,0.00012,2]
[338922425,1727078759149,-13872.84759057,0.00012,2]
[338922432,1727078913290,1000.0,0.00011824,2]
[338922476,1727079032318,-341.74,0.00012024,2]
[338922477,1727079032328,-168.62775229,0.00012121,2]
[338922485,1727079038547,-4.24224771,0.00012121,2]
[338922486,1727079038558,-283.04,0.00012123,2]
[338922487,1727079038567,-200.0,0.000122,4]
[338922488,1727079038577,-500.0,0.000123,4]
[338922489,1727079038586,-363.1959,0.000124,2]
[338922490,1727079038596,-800.0,0.000124,4]
[338922491,1727079038606,-150.0,0.00012499,2]
[338922492,1727079038615,-300.0,0.00012499,2]
[338922493,1727079038625,-431.03,0.000125,2]
[338922494,1727079038635,-50000.0,0.000125,3]
[338922495,1727079038645,-31100.868,0.000125,2]
[338922496,1727079038654,-1100.0,0.000125,4]
[338922497,1727079038664,-422.86,0.000125,2]
[338922498,1727079038674,-422.86,0.000125,2]
[338922499,1727079038683,-211.14,0.000125,2]
[338922500,1727079038693,-1165.19,0.000125,2]
[338922501,1727079038703,-247.57,0.000125,2]
[338922502,1727079038713,-1400.0,0.000126,4]
[338922503,1727079038722,-422.78,0.0001263,2]
[338922504,1727079038732,-753.4,0.0001263,2]
[338922505,1727079038742,-422.78,0.0001263,2]
[338922506,1727079038753,-753.4,0.0001263,2]
[338922507,1727079038763,-422.86,0.000127,2]
[338922508,1727079038773,-1477.66,0.000127,2]
[338922509,1727079038783,-200.0,0.000127,4]
[338922510,1727079038793,-329.11819762,0.00012724,2]
[338922511,1727079038803,-152.12,0.00012795,2]
[338922512,1727079038813,-2946.5894,0.000128,2]
[338922513,1727079038823,-475.3993,0.000128,2]
[338922514,1727079038833,-1170.15,0.000128,2]
[338922515,1727079038843,-18731.2092,0.000128,2]
[338922516,1727079038852,-499.99,0.000128,2]
[338922517,1727079038864,-200.0,0.000128,4]
[338922518,1727079038874,-158.56691584,0.000128,2]
[338922519,1727079038884,-500.0,0.00012804,2]
[338922520,1727079038894,-500.0,0.00012804,2]
[338922521,1727079038904,-521.16635701,0.00012804,2]
[338922522,1727079038914,-776648.85508559,0.00012805,2]
[338922537,1727079040225,-453.75,0.00012805,2]
[338922539,1727079040237,-726.63797975,0.00012805,2]
[338922540,1727079040249,-1175.76446203,0.00012805,2]
[338922541,1727079040323,-448.20289756,0.00012805,2]
[338922542,1727079040438,-1074.5679946,0.00012805,2]
[338922551,1727079046706,-30040.21098444,0.00012805,2]
[338922552,1727079099396,254.73,0.00010221,2]
[338922555,1727079164526,159.55,0.00010959,2]
[338922556,1727079655845,241.99,0.00010096,2]
[338922557,1727079665799,11510.0,0.000104,5]
[338922558,1727079679460,250.0,0.00011846,2]
[338922559,1727079689349,158.89,0.0001184,2]
[338922560,1727079709849,500.0,0.00010084,2]
[338922561,1727079803056,273.39,0.00011807,2]
[338922562,1727080031872,1050.0,0.00011,2]
[338922563,1727080110764,150.0,0.0001479,120]
[338922595,1727080231481,-737.29,0.0001204,2]
[338922596,1727080231648,-262.71,0.0001204,2]
[338922597,1727080231658,-235.6,0.00012071,2]
[338922598,1727080231668,-241.99,0.0001236,2]
[338922599,1727080231677,-206.37,0.00012397,2]
[338922600,1727080231687,-416.37465882,0.00012413,2]
[338922601,1727080231697,-158.91,0.00012445,2]
[338922602,1727080231706,-5364.9738,0.00012705,2]
[338922604,1727080231716,-1520.56596278,0.00012705,2]
[338922605,1727080231725,-300.0,0.00012726,2]
[338922606,1727080231735,-1520.56596276,0.00012727,2]
[338922607,1727080231744,-499.99,0.00012727,2]
[338922608,1727080231759,-150.0,0.00012727,2]
[338922609,1727080231768,-150.0,0.00012728,2]
[338922610,1727080231778,-1500.0,0.0001274,2]
[338922611,1727080231787,-150.0,0.00012745,2]
[338922612,1727080231797,-1520.56596276,0.00012748,2]
[338922613,1727080231806,-150.0,0.00012749,2]
[338922614,1727080231964,-576.18562701,0.00012764,2]
[338922615,1727080231986,-150.0,0.00012766,2]
[338922616,1727080231995,-1500.0,0.00012769,2]
[338922617,1727080232006,-150.0,0.00012769,2]
[338922618,1727080232016,-150.0,0.0001277,2]
[338922619,1727080232026,-1520.56596276,0.0001277,2]
[338922620,1727080232035,-150.0,0.00012774,2]
[338922621,1727080232045,-150.0,0.00012776,2]
[338922622,1727080232054,-24659.52573837,0.0001278,2]
[338922623,1727080232063,-150.0,0.00012782,2]
[338922624,1727080232073,-150.0,0.00012782,2]
[338922625,1727080232082,-150.0,0.00012791,2]
[338922626,1727080232092,-1520.56596276,0.00012792,2]
[338922627,1727080232101,-1500.0,0.00012793,2]
[338922628,1727080232110,-181.884,0.000128,2]
[338922629,1727080232119,-2002.41,0.000128,2]
[338922630,1727080232128,-150.0,0.00012803,2]
[338922631,1727080232137,-150.0,0.00012805,2]
[338922632,1727080232146,-327510.25781977,0.00012805,2]
[338922633,1727080232155,-200.0,0.00012805,2]
[338922634,1727080232165,-150.0,0.00012811,2]
[338922635,1727080232174,-1520.56596276,0.00012813,2]
[338922636,1727080232184,-150.0,0.00012818,2]
[338922637,1727080232193,-373.05850505,0.00012824,2]
[338922638,1727080232202,-500.0,0.00012824,2]
[338922639,1727080232212,-291.23320283,0.00012825,2]
[338922640,1727080232221,-150.0,0.00012827,2]
[338922641,1727080232231,-150.0,0.00012831,2]
[338922642,1727080232240,-1520.56596276,0.00012835,2]
[338922643,1727080232252,-150.0,0.0001284,2]
[338922644,1727080232261,-150.0,0.00012842,2]
[338922645,1727080232271,-150.0,0.00012846,2]
[338922646,1727080232281,-150.0,0.00012851,2]
[338922647,1727080232290,-150.0,0.00012856,2]
[338922648,1727080232300,-1520.56596276,0.00012857,2]
[338922649,1727080232309,-150.0,0.00012862,2]
[338922650,1727080232319,-150.0,0.00012863,2]
[338922651,1727080232329,-150.0,0.00012863,2]
[338922652,1727080232339,-223.301,0.0001287,2]
[338922653,1727080232348,-471.28112247,0.00012873,2]
[338922654,1727080232358,-500.0,0.00012873,2]
[338922655,1727080232368,-1500.0,0.00012874,2]
[338922656,1727080232378,-500.0,0.00012876,2]
[338922657,1727080232387,-500.0,0.00012876,2]
[338922658,1727080232398,-500.0,0.00012876,2]
[338922659,1727080232408,-500.0,0.00012876,2]
[338922660,1727080232418,-211.96,0.00012876,2]
[338922661,1727080232428,-1520.56596276,0.00012878,2]
[338922662,1727080232438,-15086.84023304,0.0001288,2]
[338922663,1727080232449,-150.0,0.00012881,2]
[338922664,1727080232459,-1500.0,0.00012883,2]
[338922665,1727080232468,-150.0,0.00012887,2]
[338922666,1727080232478,-55.7698516,0.00012887,2]
[338922671,1727080237690,-94.2301484,0.00012887,2]
[338922672,1727080237701,-150.0,0.00012888,2]
[338922673,1727080237711,-5.7698516,0.0001289,2]
[338922674,1727080237748,-145.9801484,0.0001289,2]
[338922675,1727080237758,-491.43085461,0.0001289,8]
[338922676,1727080237769,-2303.11487482,0.0001289,8]
[338922677,1727080237807,-887.5,0.0001289,8]
[338922678,1727080237865,-513.30811223,0.0001289,8]
[338922679,1727080238040,-24530.47692032,0.0001289,8]
[338922680,1727080238049,-259.289,0.0001289,2]
[338922681,1727080238059,-150.0,0.0001289,2]
[338922682,1727080238073,-500.0,0.00012896,2]
[338922683,1727080238082,-150.0,0.00012897,2]
[338922684,1727080238091,-100000.0,0.000129,2]
[338922685,1727080238100,-159.47489878,0.000129,2]
[338922686,1727080238110,-159.47489878,0.000129,2]
[338922687,1727080238119,-159.47489878,0.000129,2]
[338922688,1727080238128,-159.47489878,0.000129,2]
[338922689,1727080238137,-159.47489878,0.000129,2]
[338922690,1727080238147,-159.97,0.000129,2]
[338922691,1727080238157,-171.7976515,0.000129,2]
[338922692,1727080238166,-160.74645545,0.000129,2]
[338922693,1727080238175,-354.4753,0.000129,2]
[338922694,1727080238185,-1500.0,0.000129,2]
[338922695,1727080238194,-3897.676,0.000129,2]
[338922696,1727080238203,-170.70802158,0.000129,2]
[338922697,1727080238213,-170.70802158,0.000129,2]
[338922698,1727080238222,-170.70802158,0.000129,2]
[338922699,1727080238231,-171.2,0.000129,2]
[338922700,1727080238240,-1520.56596276,0.000129,2]
[338922701,1727080238249,-360.79865948,0.000129,2]
[338922702,1727080238259,-1500.0,0.00012906,2]
[338922703,1727080238268,-1500.0,0.00012907,2]
[338922704,1727080238277,-1500.0,0.00012908,2]
[338922705,1727080238286,-150.0,0.00012914,2]
[338922706,1727080238295,-150.0,0.00012919,2]
[338922707,1727080238305,-150.0,0.00012922,2]
[338922708,1727080238314,-150.0,0.00012928,2]
[338922709,1727080238324,-150.0,0.00012931,2]
[338922710,1727080238333,-150.0,0.00012933,2]
[338922711,1727080238342,-200.0,0.00012933,2]
[338922712,1727080238352,-150.0,0.00012935,2]
[338922713,1727080238362,-150.0,0.00012937,2]
[338922714,1727080238372,-150.0,0.00012942,2]
[338922715,1727080238381,-150.0,0.00012943,2]
[338922716,1727080238390,-150.0,0.00012944,2]
[338922717,1727080238400,-150.0,0.0001296,2]
[338922718,1727080238409,-150.0,0.00012963,2]
[338922719,1727080238419,-400.0,0.0001297,2]
[338922720,1727080238428,-500.0,0.00012973,2]
[338922721,1727080238437,-500.0,0.00012973,2]
[338922722,1727080238447,-500.0,0.00012973,2]
[338922723,1727080238457,-500.0,0.00012973,2]
[338922724,1727080238581,-500.0,0.00012973,2]
[338922725,1727080238615,-500.0,0.00012973,2]
[338922726,1727080238626,-311.61015954,0.00012973,2]
[338922727,1727080238637,-1500.0,0.00012973,2]
[338922728,1727080238645,-150.0,0.00012978,2]
[338922729,1727080238655,-2615.33917824,0.00012979,9]
[338922730,1727080238665,-1500.0,0.0001298,2]
[338922731,1727080238674,-150.0,0.00012988,2]
[338922732,1727080238683,-22462.7701007,0.0001299,3]
[338922733,1727080238692,-150.0,0.00012991,2]
[338922734,1727080238701,-464.9371458,0.00012996,2]
[338922735,1727080238710,-150.0,0.00012997,2]
[338922736,1727080238721,-500.0,0.00012999,2]
[338922737,1727080238730,-500.0,0.00012999,2]
[338922738,1727080238740,-500.0,0.00012999,2]
[338922739,1727080238749,-500.0,0.00012999,2]
[338922740,1727080238758,-500.0,0.00012999,2]
[338922741,1727080238767,-203.52,0.00012999,2]
[338922742,1727080238777,-500.0,0.00012999,2]
[338922743,1727080238798,-250.75747935,0.00012999,2]
[338922744,1727080238807,-500.0,0.00012999,2]